Workbook

Sheet Data (hidden)
A2: U0 | B2: 48 | C2: V | D2: Voltage power source | I2: U0 | J2: Io | K2: Power output
A3: Io | B3: 3 | C3: A | D3: Current Power source | K3: Watt | N3: A maximum of 22 nodes can be daisy-chained in the system this inlcudes all switches
A4: Power | B4: =B2*B3 -> 144 | C4: Watt | D4: Total available power | I4: 48 | J4: 3 | K4: =I4*J4 -> 144
A5: PCF's | B5: 2 | C5: m | D5: Standard Cable length per device
A6: Rcon | B6: 10 | C6: mOhm | D6: Contact Resistance per contact
A7: Rcable | B7: 23 | C7: ohm/km | D7: Cable resistance one way
A9: DCNM-MMD | B9: 11.3 | C9: Watt | D9: Power per device
A10: DCNM-MMD2 | B10: 12 | C10: Watt
A11: DCNM-DE | B11: 5 | C11: Watt | H11: #of FLSP/FMCP/FSLP | I11: # FMICB/FIDP/FVP/FAI
A12: DCNM-DSL | B12: 3.6 | C12: Watt | E12: DCNM-FMICB/FPRIOB | F12: 0.4 | G12: Watt | H12: 0 | I12: 0
A13: DCNM-DVT | B13: 3.7 | C13: Watt | E13: DCNM-FMCP | F13: 0.2 | G13: Watt | H13: 1 | I13: 1
A14: DCNM-D | B14: 3.1 | C14: Watt | E14: DCNM-FLSP | F14: 1 | G14: Watt | H14: 2 | I14: 2
A15: DCNM-IDESK | B15: 15 | C15: Watt | E15: DCNM-FIDP | F15: 0.5 | G15: Watt | I15: 3
A16: DCNM-IDESKVID | B16: 18 | C16: Watt | E16: DCNM-FVP | F16: 0.5 | G16: Watt | I16: 4
A17: DCNM-FBD2 | B17: 5 | C17: Watt | E17: DCNM-FAI | F17: 0.5 | G17: Watt
A18: INT-TXO | B18: 10 | C18: Watt | E18: DCNM-FSLP | F18: 0.5 | G18: Watt
A19: DCNM-ENCD | B19: 2 | C19: Watt
A20: DCNM-ENCS | B20: 2 | C20: Watt

Sheet Intro
A1: DICENTIS Power Calculation Tool
A2: Version | B2: 213
A3: Date | B3: 2025-06-25
A19: Click the hyperlink of either meters or feet to enter the calculation sheet.
A20: Enter the required cable length and the calculation will show you in red if the cable is too long.
A21: Clearing the cable length cell will remove the complete line
A22: Have fun using this tool.

Sheet Calculate
D1: attached modules to FBD2 (total on both outputs) | K1: Length | L1: P device W | M1: CB resistance | N1: U device V | O1: Iload (mA) | P1: In (A) | Q1: V too low | R1: I too low | U1: =NOW() -> 2026-03-24T12:37:12.310
A2: Device | B2: Cable length (m) between 2-99 | C2: Device type | D2: DCNM-FLSP | E2: DCNM-FMICB / DCNM-FPRIOB | F2: DCNM-FMCP | G2: DCNM-FIDP | H2: DCNM-FVP | I2: DCNM- FSLP | J2: DCNM-FAI | K2: m | L2: 3.2808399 | N2: =Data!$B$2 -> 48 | P2: 3 | Q2: =IFERROR(MATCH(1,Q3:Q43,0),) -> 41 | R2: =IFERROR(MATCH(1,R3:R43,0),) -> 31 | T2: 3 | U2: 41 | V2: 41
A3: 1 | B3: 2 | C3: DCNM-DE | K3: =IF($K$2="m",B3,INT(B3/3.2808399+0.5)) -> 2 | L3: =IF(ISBLANK(C3),"",VLOOKUP(C3,Data!$A$9:$B$20,2,FALSE)+IF(C3="DCNM-FBD2",D3*Data!$F$14+E3*Data!$F$12+F3*Data!$F$13+G3*Data!$F$15+H3*Data!$F$16+I3*Data!$F$17+J3*Data!$F$18,0)) -> 5 | M3: =IF(OR(COUNTBLANK(K3)>0,COUNTBLANK(L3)>0),"",2*(Data!$B$7/1000)*K3+ 4*Data!$B$6/1000) -> 0.132 | N3: =IF(COUNTBLANK(M3)>0,"",N2-(P2*M3)) -> 47.604 | O3: =IF(COUNTBLANK(N3)>0,"",(L3/N3)*1000) -> 105.0331905 | P3: =IF(COUNTBLANK(O3)>0,"",P2-O2/1000) -> 3 | Q3: =IFERROR(IF(LEFT(C3,6)="DCNM-D",IF((N3<35),1,0),IF((N3<31),1,0)),) -> 0 | R3: =IFERROR(IF(P3<O3/1000,1,0),) -> 0 | S3: =Q3+R3 -> 0 | T3: 3 | U3: 41 | V3: 41
A4: 2 | B4: 2 | C4: DCNM-DE | K4: 2 | L4: =IF(ISBLANK(C4),"",VLOOKUP(C4,Data!$A$9:$B$20,2,FALSE)+IF(C4="DCNM-FBD2",D4*Data!$F$14+E4*Data!$F$12+F4*Data!$F$13+G4*Data!$F$15+H4*Data!$F$16+I4*Data!$F$17+J4*Data!$F$18,0)) -> 5 | M4: =IF(OR(COUNTBLANK(K4)>0,COUNTBLANK(L4)>0),"",2*(Data!$B$7/1000)*K4+ 4*Data!$B$6/1000) -> 0.132 | N4: =IF(COUNTBLANK(M4)>0,"",N3-(P3*M4)) -> 47.208 | O4: =IF(COUNTBLANK(N4)>0,"",(L4/N4)*1000) -> 105.9142518 | P4: =IF(COUNTBLANK(O4)>0,"",P3-O3/1000) -> 2.89496681 | Q4: 0 | R4: =IFERROR(IF(P4<O4/1000,1,0),) -> 0 | S4: =Q4+R4+SUM($S$3:S3) -> 0 | T4: 3 | U4: 41 | V4: 41
A5: 3 | B5: 2 | C5: DCNM-DE | K5: 2 | L5: =IF(ISBLANK(C5),"",VLOOKUP(C5,Data!$A$9:$B$20,2,FALSE)+IF(C5="DCNM-FBD2",D5*Data!$F$14+E5*Data!$F$12+F5*Data!$F$13+G5*Data!$F$15+H5*Data!$F$16+I5*Data!$F$17+J5*Data!$F$18,0)) -> 5 | M5: =IF(OR(COUNTBLANK(K5)>0,COUNTBLANK(L5)>0),"",2*(Data!$B$7/1000)*K5+ 4*Data!$B$6/1000) -> 0.132 | N5: =IF(COUNTBLANK(M5)>0,"",N4-(P4*M5)) -> 46.82586438 | O5: =IF(COUNTBLANK(N5)>0,"",(L5/N5)*1000) -> 106.7785948 | P5: =IF(COUNTBLANK(O5)>0,"",P4-O4/1000) -> 2.789052558 | Q5: 0 | R5: =IFERROR(IF(P5<O5/1000,1,0),) -> 0 | S5: =Q5+R5+SUM($S$3:S4) -> 0
A6: 4 | B6: 2 | C6: DCNM-DE | K6: 2 | L6: =IF(ISBLANK(C6),"",VLOOKUP(C6,Data!$A$9:$B$20,2,FALSE)+IF(C6="DCNM-FBD2",D6*Data!$F$14+E6*Data!$F$12+F6*Data!$F$13+G6*Data!$F$15+H6*Data!$F$16+I6*Data!$F$17+J6*Data!$F$18,0)) -> 5 | M6: =IF(OR(COUNTBLANK(K6)>0,COUNTBLANK(L6)>0),"",2*(Data!$B$7/1000)*K6+ 4*Data!$B$6/1000) -> 0.132 | N6: 46.45770944 | O6: 107.6247637 | P6: 2.682273963 | Q6: 0 | R6: 0 | S6: =Q6+R6+SUM($S$3:S5) -> 0
A7: 5 | B7: 2 | C7: DCNM-DE | K7: 2 | L7: =IF(ISBLANK(C7),"",VLOOKUP(C7,Data!$A$9:$B$20,2,FALSE)+IF(C7="DCNM-FBD2",D7*Data!$F$14+E7*Data!$F$12+F7*Data!$F$13+G7*Data!$F$15+H7*Data!$F$16+I7*Data!$F$17+J7*Data!$F$18,0)) -> 5 | M7: =IF(OR(COUNTBLANK(K7)>0,COUNTBLANK(L7)>0),"",2*(Data!$B$7/1000)*K7+ 4*Data!$B$6/1000) -> 0.132 | N7: 46.10364928 | O7: 108.4512848 | P7: 2.574649199 | Q7: 0 | R7: 0 | S7: =Q7+R7+SUM($S$3:S6) -> 0
A8: 6 | B8: 2 | C8: DCNM-DE | K8: 2 | L8: =IF(ISBLANK(C8),"",VLOOKUP(C8,Data!$A$9:$B$20,2,FALSE)+IF(C8="DCNM-FBD2",D8*Data!$F$14+E8*Data!$F$12+F8*Data!$F$13+G8*Data!$F$15+H8*Data!$F$16+I8*Data!$F$17+J8*Data!$F$18,0)) -> 5 | M8: =IF(OR(COUNTBLANK(K8)>0,COUNTBLANK(L8)>0),"",2*(Data!$B$7/1000)*K8+ 4*Data!$B$6/1000) -> 0.132 | N8: 45.76379559 | O8: 109.2566719 | P8: 2.466197914 | Q8: 0 | R8: 0 | S8: =Q8+R8+SUM($S$3:S7) -> 0
A9: 7 | B9: 2 | C9: DCNM-DE | K9: 2 | L9: =IF(ISBLANK(C9),"",VLOOKUP(C9,Data!$A$9:$B$20,2,FALSE)+IF(C9="DCNM-FBD2",D9*Data!$F$14+E9*Data!$F$12+F9*Data!$F$13+G9*Data!$F$15+H9*Data!$F$16+I9*Data!$F$17+J9*Data!$F$18,0)) -> 5 | M9: =IF(OR(COUNTBLANK(K9)>0,COUNTBLANK(L9)>0),"",2*(Data!$B$7/1000)*K9+ 4*Data!$B$6/1000) -> 0.132 | N9: 45.43825746 | O9: 110.0394311 | P9: 2.356941242 | Q9: 0 | R9: 0 | S9: =Q9+R9+SUM($S$3:S8) -> 0
A10: 8 | B10: 2 | C10: DCNM-DE | K10: 2 | L10: =IF(ISBLANK(C10),"",VLOOKUP(C10,Data!$A$9:$B$20,2,FALSE)+IF(C10="DCNM-FBD2",D10*Data!$F$14+E10*Data!$F$12+F10*Data!$F$13+G10*Data!$F$15+H10*Data!$F$16+I10*Data!$F$17+J10*Data!$F$18,0)) -> 5 | M10: =IF(OR(COUNTBLANK(K10)>0,COUNTBLANK(L10)>0),"",2*(Data!$B$7/1000)*K10+ 4*Data!$B$6/1000) -> 0.132 | N10: 45.12714122 | O10: 110.7980666 | P10: 2.246901811 | Q10: 0 | R10: 0 | S10: =Q10+R10+SUM($S$3:S9) -> 0
A11: 9 | B11: 2 | C11: DCNM-DE | K11: 2 | L11: =IF(ISBLANK(C11),"",VLOOKUP(C11,Data!$A$9:$B$20,2,FALSE)+IF(C11="DCNM-FBD2",D11*Data!$F$14+E11*Data!$F$12+F11*Data!$F$13+G11*Data!$F$15+H11*Data!$F$16+I11*Data!$F$17+J11*Data!$F$18,0)) -> 5 | M11: =IF(OR(COUNTBLANK(K11)>0,COUNTBLANK(L11)>0),"",2*(Data!$B$7/1000)*K11+ 4*Data!$B$6/1000) -> 0.132 | N11: 44.83055018 | O11: 111.5310872 | P11: 2.136103745 | Q11: 0 | R11: 0 | S11: =Q11+R11+SUM($S$3:S10) -> 0
A12: 10 | B12: 2 | C12: DCNM-DE | K12: 2 | L12: =IF(ISBLANK(C12),"",VLOOKUP(C12,Data!$A$9:$B$20,2,FALSE)+IF(C12="DCNM-FBD2",D12*Data!$F$14+E12*Data!$F$12+F12*Data!$F$13+G12*Data!$F$15+H12*Data!$F$16+I12*Data!$F$17+J12*Data!$F$18,0)) -> 5 | M12: =IF(OR(COUNTBLANK(K12)>0,COUNTBLANK(L12)>0),"",2*(Data!$B$7/1000)*K12+ 4*Data!$B$6/1000) -> 0.132 | N12: 44.54858448 | O12: 112.2370117 | P12: 2.024572658 | Q12: 0 | R12: 0 | S12: =Q12+R12+SUM($S$3:S11) -> 0
A13: 11 | B13: 2 | C13: DCNM-DE | K13: 2 | L13: =IF(ISBLANK(C13),"",VLOOKUP(C13,Data!$A$9:$B$20,2,FALSE)+IF(C13="DCNM-FBD2",D13*Data!$F$14+E13*Data!$F$12+F13*Data!$F$13+G13*Data!$F$15+H13*Data!$F$16+I13*Data!$F$17+J13*Data!$F$18,0)) -> 5 | M13: =IF(OR(COUNTBLANK(K13)>0,COUNTBLANK(L13)>0),"",2*(Data!$B$7/1000)*K13+ 4*Data!$B$6/1000) -> 0.132 | N13: 44.28134089 | O13: 112.9143766 | P13: 1.912335646 | Q13: 0 | R13: 0 | S13: =Q13+R13+SUM($S$3:S12) -> 0
A14: 12 | B14: 2 | C14: DCNM-DE | K14: 2 | L14: =IF(ISBLANK(C14),"",VLOOKUP(C14,Data!$A$9:$B$20,2,FALSE)+IF(C14="DCNM-FBD2",D14*Data!$F$14+E14*Data!$F$12+F14*Data!$F$13+G14*Data!$F$15+H14*Data!$F$16+I14*Data!$F$17+J14*Data!$F$18,0)) -> 5 | M14: =IF(OR(COUNTBLANK(K14)>0,COUNTBLANK(L14)>0),"",2*(Data!$B$7/1000)*K14+ 4*Data!$B$6/1000) -> 0.132 | N14: 44.02891259 | O14: 113.5617417 | P14: 1.799421269 | Q14: 0 | R14: 0 | S14: =Q14+R14+SUM($S$3:S13) -> 0
A15: 13 | B15: 2 | C15: DCNM-DE | K15: 2 | L15: =IF(ISBLANK(C15),"",VLOOKUP(C15,Data!$A$9:$B$20,2,FALSE)+IF(C15="DCNM-FBD2",D15*Data!$F$14+E15*Data!$F$12+F15*Data!$F$13+G15*Data!$F$15+H15*Data!$F$16+I15*Data!$F$17+J15*Data!$F$18,0)) -> 5 | M15: =IF(OR(COUNTBLANK(K15)>0,COUNTBLANK(L15)>0),"",2*(Data!$B$7/1000)*K15+ 4*Data!$B$6/1000) -> 0.132 | N15: 43.79138898 | O15: 114.1776983 | P15: 1.685859528 | Q15: 0 | R15: 0 | S15: =Q15+R15+SUM($S$3:S14) -> 0
A16: 14 | B16: 2 | C16: DCNM-DE | K16: 2 | L16: =IF(ISBLANK(C16),"",VLOOKUP(C16,Data!$A$9:$B$20,2,FALSE)+IF(C16="DCNM-FBD2",D16*Data!$F$14+E16*Data!$F$12+F16*Data!$F$13+G16*Data!$F$15+H16*Data!$F$16+I16*Data!$F$17+J16*Data!$F$18,0)) -> 5 | M16: =IF(OR(COUNTBLANK(K16)>0,COUNTBLANK(L16)>0),"",2*(Data!$B$7/1000)*K16+ 4*Data!$B$6/1000) -> 0.132 | N16: 43.56885552 | O16: 114.7608754 | P16: 1.571681829 | Q16: 0 | R16: 0 | S16: =Q16+R16+SUM($S$3:S15) -> 0
A17: 15 | B17: 2 | C17: DCNM-DE | K17: 2 | L17: =IF(ISBLANK(C17),"",VLOOKUP(C17,Data!$A$9:$B$20,2,FALSE)+IF(C17="DCNM-FBD2",D17*Data!$F$14+E17*Data!$F$12+F17*Data!$F$13+G17*Data!$F$15+H17*Data!$F$16+I17*Data!$F$17+J17*Data!$F$18,0)) -> 5 | M17: =IF(OR(COUNTBLANK(K17)>0,COUNTBLANK(L17)>0),"",2*(Data!$B$7/1000)*K17+ 4*Data!$B$6/1000) -> 0.132 | N17: 43.36139352 | O17: 115.3099473 | P17: 1.456920954 | Q17: 0 | R17: 0 | S17: =Q17+R17+SUM($S$3:S16) -> 0
A18: 16 | B18: 2 | C18: DCNM-DE | K18: 2 | L18: =IF(ISBLANK(C18),"",VLOOKUP(C18,Data!$A$9:$B$20,2,FALSE)+IF(C18="DCNM-FBD2",D18*Data!$F$14+E18*Data!$F$12+F18*Data!$F$13+G18*Data!$F$15+H18*Data!$F$16+I18*Data!$F$17+J18*Data!$F$18,0)) -> 5 | M18: =IF(OR(COUNTBLANK(K18)>0,COUNTBLANK(L18)>0),"",2*(Data!$B$7/1000)*K18+ 4*Data!$B$6/1000) -> 0.132 | N18: 43.16907996 | O18: 115.8236406 | P18: 1.341611007 | Q18: 0 | R18: 0 | S18: =Q18+R18+SUM($S$3:S17) -> 0
A19: 17 | B19: 2 | C19: DCNM-DE | K19: 2 | L19: =IF(ISBLANK(C19),"",VLOOKUP(C19,Data!$A$9:$B$20,2,FALSE)+IF(C19="DCNM-FBD2",D19*Data!$F$14+E19*Data!$F$12+F19*Data!$F$13+G19*Data!$F$15+H19*Data!$F$16+I19*Data!$F$17+J19*Data!$F$18,0)) -> 5 | M19: =IF(OR(COUNTBLANK(K19)>0,COUNTBLANK(L19)>0),"",2*(Data!$B$7/1000)*K19+ 4*Data!$B$6/1000) -> 0.132 | N19: 42.9919873 | O19: 116.3007415 | P19: 1.225787366 | Q19: 0 | R19: 0 | S19: =Q19+R19+SUM($S$3:S18) -> 0
A20: 18 | B20: 2 | C20: DCNM-DE | K20: 2 | L20: =IF(ISBLANK(C20),"",VLOOKUP(C20,Data!$A$9:$B$20,2,FALSE)+IF(C20="DCNM-FBD2",D20*Data!$F$14+E20*Data!$F$12+F20*Data!$F$13+G20*Data!$F$15+H20*Data!$F$16+I20*Data!$F$17+J20*Data!$F$18,0)) -> 5 | M20: =IF(OR(COUNTBLANK(K20)>0,COUNTBLANK(L20)>0),"",2*(Data!$B$7/1000)*K20+ 4*Data!$B$6/1000) -> 0.132 | N20: 42.83018337 | O20: 116.7401026 | P20: 1.109486625 | Q20: 0 | R20: 0 | S20: =Q20+R20+SUM($S$3:S19) -> 0
A21: 19 | B21: 2 | C21: DCNM-DE | K21: 2 | L21: =IF(ISBLANK(C21),"",VLOOKUP(C21,Data!$A$9:$B$20,2,FALSE)+IF(C21="DCNM-FBD2",D21*Data!$F$14+E21*Data!$F$12+F21*Data!$F$13+G21*Data!$F$15+H21*Data!$F$16+I21*Data!$F$17+J21*Data!$F$18,0)) -> 5 | M21: =IF(OR(COUNTBLANK(K21)>0,COUNTBLANK(L21)>0),"",2*(Data!$B$7/1000)*K21+ 4*Data!$B$6/1000) -> 0.132 | N21: 42.68373114 | O21: 117.1406498 | P21: 0.9927465219 | Q21: 0 | R21: 0 | S21: =Q21+R21+SUM($S$3:S20) -> 0
A22: 20 | B22: 2 | C22: DCNM-D | K22: 2 | L22: =IF(ISBLANK(C22),"",VLOOKUP(C22,Data!$A$9:$B$20,2,FALSE)+IF(C22="DCNM-FBD2",D22*Data!$F$14+E22*Data!$F$12+F22*Data!$F$13+G22*Data!$F$15+H22*Data!$F$16+I22*Data!$F$17+J22*Data!$F$18,0)) -> 3.1 | M22: =IF(OR(COUNTBLANK(K22)>0,COUNTBLANK(L22)>0),"",2*(Data!$B$7/1000)*K22+ 4*Data!$B$6/1000) -> 0.132 | N22: 42.55268859 | O22: 72.85086095 | P22: 0.8756058722 | Q22: 0 | R22: 0 | S22: =Q22+R22+SUM($S$3:S21) -> 0
A23: 21 | B23: 2 | C23: DCNM-D | K23: 2 | L23: =IF(ISBLANK(C23),"",VLOOKUP(C23,Data!$A$9:$B$20,2,FALSE)+IF(C23="DCNM-FBD2",D23*Data!$F$14+E23*Data!$F$12+F23*Data!$F$13+G23*Data!$F$15+H23*Data!$F$16+I23*Data!$F$17+J23*Data!$F$18,0)) -> 3.1 | M23: =IF(OR(COUNTBLANK(K23)>0,COUNTBLANK(L23)>0),"",2*(Data!$B$7/1000)*K23+ 4*Data!$B$6/1000) -> 0.132 | N23: 42.43710862 | O23: 73.04927458 | P23: 0.8027550112 | Q23: 0 | R23: 0 | S23: =Q23+R23+SUM($S$3:S22) -> 0
A24: 22 | B24: 2 | C24: DCNM-D | K24: 2 | L24: =IF(ISBLANK(C24),"",VLOOKUP(C24,Data!$A$9:$B$20,2,FALSE)+IF(C24="DCNM-FBD2",D24*Data!$F$14+E24*Data!$F$12+F24*Data!$F$13+G24*Data!$F$15+H24*Data!$F$16+I24*Data!$F$17+J24*Data!$F$18,0)) -> 3.1 | M24: =IF(OR(COUNTBLANK(K24)>0,COUNTBLANK(L24)>0),"",2*(Data!$B$7/1000)*K24+ 4*Data!$B$6/1000) -> 0.132 | N24: 42.33114496 | O24: 73.23213211 | P24: 0.7297057366 | Q24: 0 | R24: 0 | S24: =Q24+R24+SUM($S$3:S23) -> 0
A25: 23 | B25: 2 | C25: DCNM-D | K25: 2 | L25: =IF(ISBLANK(C25),"",VLOOKUP(C25,Data!$A$9:$B$20,2,FALSE)+IF(C25="DCNM-FBD2",D25*Data!$F$14+E25*Data!$F$12+F25*Data!$F$13+G25*Data!$F$15+H25*Data!$F$16+I25*Data!$F$17+J25*Data!$F$18,0)) -> 3.1 | M25: =IF(OR(COUNTBLANK(K25)>0,COUNTBLANK(L25)>0),"",2*(Data!$B$7/1000)*K25+ 4*Data!$B$6/1000) -> 0.132 | N25: 42.2348238 | O25: 73.39914604 | P25: 0.6564736045 | Q25: 0 | R25: 0 | S25: =Q25+R25+SUM($S$3:S24) -> 0
A26: 24 | B26: 2 | C26: DCNM-D | K26: 2 | L26: =IF(ISBLANK(C26),"",VLOOKUP(C26,Data!$A$9:$B$20,2,FALSE)+IF(C26="DCNM-FBD2",D26*Data!$F$14+E26*Data!$F$12+F26*Data!$F$13+G26*Data!$F$15+H26*Data!$F$16+I26*Data!$F$17+J26*Data!$F$18,0)) -> 3.1 | M26: =IF(OR(COUNTBLANK(K26)>0,COUNTBLANK(L26)>0),"",2*(Data!$B$7/1000)*K26+ 4*Data!$B$6/1000) -> 0.132 | N26: 42.14816929 | O26: 73.55005099 | P26: 0.5830744585 | Q26: 0 | R26: 0 | S26: =Q26+R26+SUM($S$3:S25) -> 0
A27: 25 | B27: 2 | C27: DCNM-D | K27: 2 | L27: =IF(ISBLANK(C27),"",VLOOKUP(C27,Data!$A$9:$B$20,2,FALSE)+IF(C27="DCNM-FBD2",D27*Data!$F$14+E27*Data!$F$12+F27*Data!$F$13+G27*Data!$F$15+H27*Data!$F$16+I27*Data!$F$17+J27*Data!$F$18,0)) -> 3.1 | M27: =IF(OR(COUNTBLANK(K27)>0,COUNTBLANK(L27)>0),"",2*(Data!$B$7/1000)*K27+ 4*Data!$B$6/1000) -> 0.132 | N27: 42.07120346 | O27: 73.6846048 | P27: 0.5095244075 | Q27: 0 | R27: 0 | S27: =Q27+R27+SUM($S$3:S26) -> 0
A28: 26 | B28: 2 | C28: DCNM-D | K28: 2 | L28: =IF(ISBLANK(C28),"",VLOOKUP(C28,Data!$A$9:$B$20,2,FALSE)+IF(C28="DCNM-FBD2",D28*Data!$F$14+E28*Data!$F$12+F28*Data!$F$13+G28*Data!$F$15+H28*Data!$F$16+I28*Data!$F$17+J28*Data!$F$18,0)) -> 3.1 | M28: =IF(OR(COUNTBLANK(K28)>0,COUNTBLANK(L28)>0),"",2*(Data!$B$7/1000)*K28+ 4*Data!$B$6/1000) -> 0.132 | N28: 42.00394624 | O28: 73.80258947 | P28: 0.4358398027 | Q28: 0 | R28: 0 | S28: =Q28+R28+SUM($S$3:S27) -> 0
A29: 27 | B29: 2 | C29: DCNM-D | K29: 2 | L29: =IF(ISBLANK(C29),"",VLOOKUP(C29,Data!$A$9:$B$20,2,FALSE)+IF(C29="DCNM-FBD2",D29*Data!$F$14+E29*Data!$F$12+F29*Data!$F$13+G29*Data!$F$15+H29*Data!$F$16+I29*Data!$F$17+J29*Data!$F$18,0)) -> 3.1 | M29: =IF(OR(COUNTBLANK(K29)>0,COUNTBLANK(L29)>0),"",2*(Data!$B$7/1000)*K29+ 4*Data!$B$6/1000) -> 0.132 | N29: 41.94641538 | O29: 73.90381209 | P29: 0.3620372132 | Q29: 0 | R29: 0 | S29: =Q29+R29+SUM($S$3:S28) -> 0
A30: 28 | B30: 2 | C30: DCNM-D | K30: 2 | L30: =IF(ISBLANK(C30),"",VLOOKUP(C30,Data!$A$9:$B$20,2,FALSE)+IF(C30="DCNM-FBD2",D30*Data!$F$14+E30*Data!$F$12+F30*Data!$F$13+G30*Data!$F$15+H30*Data!$F$16+I30*Data!$F$17+J30*Data!$F$18,0)) -> 3.1 | M30: =IF(OR(COUNTBLANK(K30)>0,COUNTBLANK(L30)>0),"",2*(Data!$B$7/1000)*K30+ 4*Data!$B$6/1000) -> 0.132 | N30: 41.89862647 | O30: 73.98810561 | P30: 0.2881334012 | Q30: 0 | R30: 0 | S30: =Q30+R30+SUM($S$3:S29) -> 0
A31: 29 | B31: 2 | C31: DCNM-D | K31: 2 | L31: =IF(ISBLANK(C31),"",VLOOKUP(C31,Data!$A$9:$B$20,2,FALSE)+IF(C31="DCNM-FBD2",D31*Data!$F$14+E31*Data!$F$12+F31*Data!$F$13+G31*Data!$F$15+H31*Data!$F$16+I31*Data!$F$17+J31*Data!$F$18,0)) -> 3.1 | M31: =IF(OR(COUNTBLANK(K31)>0,COUNTBLANK(L31)>0),"",2*(Data!$B$7/1000)*K31+ 4*Data!$B$6/1000) -> 0.132 | N31: 41.86059286 | O31: 74.05532956 | P31: 0.2141452955 | Q31: 0 | R31: 0 | S31: =Q31+R31+SUM($S$3:S30) -> 0
A32: 30 | B32: 2 | C32: DCNM-D | K32: 2 | L32: =IF(ISBLANK(C32),"",VLOOKUP(C32,Data!$A$9:$B$20,2,FALSE)+IF(C32="DCNM-FBD2",D32*Data!$F$14+E32*Data!$F$12+F32*Data!$F$13+G32*Data!$F$15+H32*Data!$F$16+I32*Data!$F$17+J32*Data!$F$18,0)) -> 3.1 | M32: =IF(OR(COUNTBLANK(K32)>0,COUNTBLANK(L32)>0),"",2*(Data!$B$7/1000)*K32+ 4*Data!$B$6/1000) -> 0.132 | N32: 41.83232568 | O32: 74.10537066 | P32: 0.140089966 | Q32: 0 | R32: 0 | S32: =Q32+R32+SUM($S$3:S31) -> 0
A33: 31 | B33: 2 | C33: DCNM-D | K33: 2 | L33: =IF(ISBLANK(C33),"",VLOOKUP(C33,Data!$A$9:$B$20,2,FALSE)+IF(C33="DCNM-FBD2",D33*Data!$F$14+E33*Data!$F$12+F33*Data!$F$13+G33*Data!$F$15+H33*Data!$F$16+I33*Data!$F$17+J33*Data!$F$18,0)) -> 3.1 | M33: =IF(OR(COUNTBLANK(K33)>0,COUNTBLANK(L33)>0),"",2*(Data!$B$7/1000)*K33+ 4*Data!$B$6/1000) -> 0.132 | N33: 41.81383381 | O33: 74.13814324 | P33: 0.06598459532 | Q33: 0 | R33: 1 | S33: =Q33+R33+SUM($S$3:S32) -> 1
A34: 32 | B34: 2 | C34: DCNM-D | K34: 2 | L34: =IF(ISBLANK(C34),"",VLOOKUP(C34,Data!$A$9:$B$20,2,FALSE)+IF(C34="DCNM-FBD2",D34*Data!$F$14+E34*Data!$F$12+F34*Data!$F$13+G34*Data!$F$15+H34*Data!$F$16+I34*Data!$F$17+J34*Data!$F$18,0)) -> 3.1 | M34: =IF(OR(COUNTBLANK(K34)>0,COUNTBLANK(L34)>0),"",2*(Data!$B$7/1000)*K34+ 4*Data!$B$6/1000) -> 0.132 | N34: 41.80512384 | O34: 74.15358969 | P34: -0.008153547914 | Q34: 0 | R34: 1 | S34: =Q34+R34+SUM($S$3:S33) -> 2
A35: 33 | B35: 2 | C35: DCNM-D | K35: 2 | L35: =IF(ISBLANK(C35),"",VLOOKUP(C35,Data!$A$9:$B$20,2,FALSE)+IF(C35="DCNM-FBD2",D35*Data!$F$14+E35*Data!$F$12+F35*Data!$F$13+G35*Data!$F$15+H35*Data!$F$16+I35*Data!$F$17+J35*Data!$F$18,0)) -> 3.1 | M35: =IF(OR(COUNTBLANK(K35)>0,COUNTBLANK(L35)>0),"",2*(Data!$B$7/1000)*K35+ 4*Data!$B$6/1000) -> 0.132 | N35: 41.80620011 | O35: 74.15168066 | P35: -0.0823071376 | Q35: 0 | R35: 1 | S35: =Q35+R35+SUM($S$3:S34) -> 4
A36: 34 | B36: 2 | C36: DCNM-D | K36: 2 | L36: =IF(ISBLANK(C36),"",VLOOKUP(C36,Data!$A$9:$B$20,2,FALSE)+IF(C36="DCNM-FBD2",D36*Data!$F$14+E36*Data!$F$12+F36*Data!$F$13+G36*Data!$F$15+H36*Data!$F$16+I36*Data!$F$17+J36*Data!$F$18,0)) -> 3.1 | M36: =IF(OR(COUNTBLANK(K36)>0,COUNTBLANK(L36)>0),"",2*(Data!$B$7/1000)*K36+ 4*Data!$B$6/1000) -> 0.132 | N36: =IF(COUNTBLANK(M36)>0,"",N35-(P35*M36)) -> 41.81706465 | O36: =IF(COUNTBLANK(N36)>0,"",(L36/N36)*1000) -> 74.13241522 | P36: =IF(COUNTBLANK(O36)>0,"",P35-O35/1000) -> -0.1564588183 | Q36: 0 | R36: =IFERROR(IF(P36<O36/1000,1,0),) -> 1 | S36: =Q36+R36+SUM($S$3:S35) -> 8
A37: 35 | B37: 2 | C37: DCNM-D | K37: 2 | L37: =IF(ISBLANK(C37),"",VLOOKUP(C37,Data!$A$9:$B$20,2,FALSE)+IF(C37="DCNM-FBD2",D37*Data!$F$14+E37*Data!$F$12+F37*Data!$F$13+G37*Data!$F$15+H37*Data!$F$16+I37*Data!$F$17+J37*Data!$F$18,0)) -> 3.1 | M37: =IF(OR(COUNTBLANK(K37)>0,COUNTBLANK(L37)>0),"",2*(Data!$B$7/1000)*K37+ 4*Data!$B$6/1000) -> 0.132 | N37: 41.83771721 | O37: 74.09582086 | P37: -0.2305912335 | Q37: 0 | R37: 1 | S37: =Q37+R37+SUM($S$3:S36) -> 16
A38: 36 | B38: 2 | C38: DCNM-D | K38: 2 | L38: =IF(ISBLANK(C38),"",VLOOKUP(C38,Data!$A$9:$B$20,2,FALSE)+IF(C38="DCNM-FBD2",D38*Data!$F$14+E38*Data!$F$12+F38*Data!$F$13+G38*Data!$F$15+H38*Data!$F$16+I38*Data!$F$17+J38*Data!$F$18,0)) -> 3.1 | M38: =IF(OR(COUNTBLANK(K38)>0,COUNTBLANK(L38)>0),"",2*(Data!$B$7/1000)*K38+ 4*Data!$B$6/1000) -> 0.132 | N38: 41.86815526 | O38: 74.04195339 | P38: -0.3046870544 | Q38: 0 | R38: 1 | S38: =Q38+R38+SUM($S$3:S37) -> 32
A39: 37 | B39: 2 | C39: DCNM-D | K39: 2 | L39: =IF(ISBLANK(C39),"",VLOOKUP(C39,Data!$A$9:$B$20,2,FALSE)+IF(C39="DCNM-FBD2",D39*Data!$F$14+E39*Data!$F$12+F39*Data!$F$13+G39*Data!$F$15+H39*Data!$F$16+I39*Data!$F$17+J39*Data!$F$18,0)) -> 3.1 | M39: =IF(OR(COUNTBLANK(K39)>0,COUNTBLANK(L39)>0),"",2*(Data!$B$7/1000)*K39+ 4*Data!$B$6/1000) -> 0.132 | N39: =IF(COUNTBLANK(M39)>0,"",N38-(P38*M39)) -> 41.90837395 | O39: =IF(COUNTBLANK(N39)>0,"",(L39/N39)*1000) -> 73.9708967 | P39: =IF(COUNTBLANK(O39)>0,"",P38-O38/1000) -> -0.3787290077 | Q39: 0 | R39: =IFERROR(IF(P39<O39/1000,1,0),) -> 1 | S39: =Q39+R39+SUM($S$3:S38) -> 64
A40: 38 | B40: 2 | C40: DCNM-D | K40: 2 | L40: =IF(ISBLANK(C40),"",VLOOKUP(C40,Data!$A$9:$B$20,2,FALSE)+IF(C40="DCNM-FBD2",D40*Data!$F$14+E40*Data!$F$12+F40*Data!$F$13+G40*Data!$F$15+H40*Data!$F$16+I40*Data!$F$17+J40*Data!$F$18,0)) -> 3.1 | M40: =IF(OR(COUNTBLANK(K40)>0,COUNTBLANK(L40)>0),"",2*(Data!$B$7/1000)*K40+ 4*Data!$B$6/1000) -> 0.132 | N40: 41.95836618 | O40: 73.88276243 | P40: -0.4526999044 | Q40: 0 | R40: 1 | S40: =Q40+R40+SUM($S$3:S39) -> 128
A41: 39 | B41: 2 | C41: DCNM-D | K41: 2 | L41: =IF(ISBLANK(C41),"",VLOOKUP(C41,Data!$A$9:$B$20,2,FALSE)+IF(C41="DCNM-FBD2",D41*Data!$F$14+E41*Data!$F$12+F41*Data!$F$13+G41*Data!$F$15+H41*Data!$F$16+I41*Data!$F$17+J41*Data!$F$18,0)) -> 3.1 | M41: =IF(OR(COUNTBLANK(K41)>0,COUNTBLANK(L41)>0),"",2*(Data!$B$7/1000)*K41+ 4*Data!$B$6/1000) -> 0.132 | N41: 42.01812256 | O41: 73.7776895 | P41: -0.5265826669 | Q41: 0 | R41: =IFERROR(IF(P41<O41/1000,1,0),) -> 1 | S41: =Q41+R41+SUM($S$3:S40) -> 256
A42: 40 | B42: 2 | C42: DCNM-D | K42: 2 | L42: =IF(ISBLANK(C42),"",VLOOKUP(C42,Data!$A$9:$B$20,2,FALSE)+IF(C42="DCNM-FBD2",D42*Data!$F$14+E42*Data!$F$12+F42*Data!$F$13+G42*Data!$F$15+H42*Data!$F$16+I42*Data!$F$17+J42*Data!$F$18,0)) -> 3.1 | M42: =IF(OR(COUNTBLANK(K42)>0,COUNTBLANK(L42)>0),"",2*(Data!$B$7/1000)*K42+ 4*Data!$B$6/1000) -> 0.132 | N42: =IF(COUNTBLANK(M42)>0,"",N41-(P41*M42)) -> 42.08763148 | O42: =IF(COUNTBLANK(N42)>0,"",(L42/N42)*1000) -> 73.65584356 | P42: =IF(COUNTBLANK(O42)>0,"",P41-O41/1000) -> -0.6003603564 | Q42: 0 | R42: =IFERROR(IF(P42<O42/1000,1,0),) -> 1 | S42: =Q42+R42+SUM($S$3:S41) -> 512
Q43: 1 | R43: 1

Sheet Revision history (hidden)
A2: Version | B2: Date | C2: Author | D2: Comment
A3: 1 | B3: 2014-06-16 | C3: Sjack Schellekens | D3: Initial version
A4: 1.01 | B4: 2014-07-16 | C4: Jeroen de Graauw | D4: Added revision history tab, and modified column width 'Calculate'B by splitting Cable Length over 2 lines
A5: 1.02 | B5: 2014-10-14 | C5: Derk-Jan Elshout | D5: added Feet
A6: 2.00 | B6: 2016-03-10 | C6: Sjack Schellekens | D6: Created master file with automatic protect feature
A7: 2.01 | B7: 2016-05-26 | C7: Sjack Schellekens | D7: Change to Marco file version to handle different devices
A8: 2.04 | B8: 2018-04-21 | C8: Sjack Schellekens | D8: Added interpreter desk
A9: 2.05 | B9: 2018-09-20 | C9: Sjack Schellekens | D9: Improved initial state, so it will start with an empty list
A10: 2.06 | B10: 2019-10-24 | C10: Sjack Schellekens | D10: Change data validation 2-99 for meters and 6-325 for feet, initial list changed to DCNM-D
A11: 2.07 | B11: 2020-04-09 | C11: Sjack Schellekens | D11: Fixed maximum check for imperial measures
A12: 2.08 | B12: 2021-03-22 | C12: Tim Vriends | D12: Added FBD + modules
A13: 2.09 | B13: 2022-10-10 | C13: Tim Vriends | D13: Added flush ph2 and TXO
A14: 2.10 | B14: 2024-09-27 | C14: Tim Vriends | D14: Correct errors wrt #of FAI and FVPs (changed from 2 to 4)
A15: 2.11 | B15: 2025-01-24 | C15: Tim Vriends | D15: Added nameplates
A16: 2.12 | B16: 2025-03-07 | C16: Tim Vriends | D16: resolved bug wrt meter/feet conversion
A17: 2.13 | B17: 2025-06-25 | C17: Derk-Jan Elshout | D17: added FLS2 calculation page

Sheet Simple Configurator for Install
A1: Flush Language Selector 2 | H1: Class | I1: PClass [W] | J1: PClass_PD [W] | K1: VPSE_min [V] | L1: VPSE_max [V] | M1: Number of pairs | N1: PCable_max [W] | O1: Loss [%] | P1: Rcable [Ω] | Q1: Icable [A] | R1: Vcable [V] | S1: VPD [V]
A2: Device number calculation tool | H2: 0 | I2: 15.4 | J2: 12.94 | K2: 44 | L2: 57 | M2: 2 | N2: =I2-J2 -> 2.46 | O2: =N2/I2 -> 0.1597402597 | P2: =(N2*K2^2)/(N2^2+2*N2*J2+J2^2) -> 20.08163265 | Q2: =(K2-SQRT(K2^2-4*P2*J2))/(2*P2) -> 0.35 | R2: =P2*Q2 -> 7.028571429 | S2: =K2-R2 -> 36.97142857
H3: 1 | I3: 4 | J3: 3.84 | K3: 44 | L3: 57 | M3: 2 | N3: 0.16 | O3: 0.04 | P3: 19.36 | Q3: 0.09090909091 | R3: 1.76 | S3: 42.24
H4: 2 | I4: 7 | J4: 6.49 | K4: 44 | L4: 57 | M4: 2 | N4: 0.51 | O4: 0.07285714286 | P4: 20.15020408 | Q4: 0.1590909091 | R4: 3.205714286 | S4: 40.79428571
A5: INPUT | H5: 3 | I5: 15.4 | J5: 12.95 | K5: 44 | L5: 57 | M5: 2 | N5: 2.45 | O5: 0.1590909091 | P5: 20 | Q5: 0.35 | R5: 7 | S5: 37
D6: Value | E6: Units | H6: 4 | I6: 30 | J6: 25.5 | K6: 50 | L6: 57 | M6: 2 | N6: 4.5 | O6: 0.15 | P6: 12.5 | Q6: 0.6 | R6: 7.5 | S6: 42.5
A7: Cable length from PSE (PoE switch) to 1st device: | D7: 100 | E7: m | H7: 5 | I7: 45 | J7: 40 | K7: 50 | L7: 57 | M7: 4 | N7: 5 | O7: 0.1111111111 | P7: 6.172839506 | Q7: 0.9 | R7: 5.555555556 | S7: 44.44444444
A8: Cable length between devices: | D8: 2 | E8: m | H8: 6 | I8: 60 | J8: 51 | K8: 50 | L8: 57 | M8: 4 | N8: 9 | O8: 0.15 | P8: 6.25 | Q8: 1.2 | R8: 7.5 | S8: 42.5
D9: CAT6 | H9: 7 | I9: 75 | J9: 62 | K9: 50 | L9: 57 | M9: 4 | N9: 13 | O9: 0.1733333333 | P9: 5.777777778 | Q9: 1.5 | R9: 8.666666667 | S9: 41.33333333
A10: Wire Gauge | D10: 22 | E10: AWG | F10: (22, …, 26) | H10: 8 | I10: 90 | J10: 71.3 | K10: 52 | L10: 57 | M10: 4 | N10: 18.7 | O10: 0.2077777778 | P10: 6.242567901 | Q10: 1.730769231 | R10: 10.80444444 | S10: 41.19555556
A11: PoE class | D11: 6 | F11: (0, …, 6)
A13: OUTPUT
A14: Maximum number of allowed devices: | D14: ='Simple Configurator for Install'!K132 -> 18
A15: Total cable length required: | D15: ='Simple Configurator for Install'!K133 -> 134 | E15: m
S40: Material | T40: Temperature [ºC] | U40: Resistivity [Ωm]
S41: Copper | T41: 20 | U41: 1.68e-08
S42: Copper | T42: 25 | U42: =U41+(U41*(T42-T41))*0.0038 -> 1.71192e-08
S43: Copper | T43: 30 | U43: =U42+(U42*(T43-T42))*0.0038 -> 1.74444648e-08
S44: Copper | T44: 35 | U44: =U43+(U43*(T44-T43))*0.0038 -> 1.777590963e-08
S45: Copper | T45: 40 | U45: =U44+(U44*(T45-T44))*0.0038 -> 1.811365191e-08
S46: Copper | T46: 45 | U46: =U45+(U45*(T46-T45))*0.0038 -> 1.84578113e-08
H47: For reference | I47: https://ethernetalliance.org/wp-content/uploads/2017/06/EA_Whitepaper_PoE_Cable_Losses_June.pdf
H49: CAT | I49: AWG | J49: AWG [in] | K49: AWG [mm] | L49: Cross Section 1 conductor [mm2] | M49: Cross Section 2 conductor [mm2] | N49: Cross Section 4 conductor [mm2] | O49: Cross Section 8 conductor [mm2] | P49: Length [m] | Q49: Material | R49: Temperature [ºC] | S49: Resistance 1 conductor [Ω] | T49: Resistance 1 pair [Ω] | U49: Resistance 2 pairs [Ω] | V49: Resistance 4 pairs [Ω] | W49: Temperature [ºC] | X49: Resistance 1 conductor [Ω] | Y49: Resistance 1 pair [Ω] | Z49: Resistance 2 pairs [Ω] | AA49: Resistance 4 pairs [Ω]
H50: CAT5 | I50: 24 | J50: 0.0201 | K50: =J50*25.4 -> 0.51054 | L50: =PI()*(K50/2)^2 -> 0.2047148886 | M50: =2*L50 -> 0.4094297773 | N50: =2*M50 -> 0.8188595545 | O50: =2*N50 -> 1.637719109 | P50: 1 | Q50: Copper | R50: 25 | S50: =INDEX($U$41:$U$46,MATCH($Q$50&$R$50,$S$41:$S$46&$T$41:$T$46,0))*$P50/($L$50/1000000) -> 0.0836245967 | T50: =S50/2 -> 0.04181229835 | U50: 0.02090614917 | V50: 0.01045307459 | W50: 45 | X50: =INDEX($U$41:$U$46,MATCH($Q$50&$W$50,$S$41:$S$46&$T$41:$T$46,0))*$P50/($L$50/1000000) -> 0.09016350215 | Y50: =X50/2 -> 0.04508175107 | Z50: 0.02254087554 | AA50: 0.01127043777
P51: 10 | S51: =INDEX($U$41:$U$46,MATCH($Q$50&$R$50,$S$41:$S$46&$T$41:$T$46,0))*$P51/($L$50/1000000) -> 0.836245967 | T51: 0.4181229835 | U51: 0.2090614917 | V51: 0.1045307459 | X51: =INDEX($U$41:$U$46,MATCH($Q$50&$W$50,$S$41:$S$46&$T$41:$T$46,0))*$P51/($L$50/1000000) -> 0.9016350215 | Y51: 0.4508175107 | Z51: 0.2254087554 | AA51: 0.1127043777
P52: 100 | S52: =INDEX($U$41:$U$46,MATCH($Q$50&$R$50,$S$41:$S$46&$T$41:$T$46,0))*$P52/($L$50/1000000) -> 8.36245967 | T52: 4.181229835 | U52: 2.090614917 | V52: 1.045307459 | X52: =INDEX($U$41:$U$46,MATCH($Q$50&$W$50,$S$41:$S$46&$T$41:$T$46,0))*$P52/($L$50/1000000) -> 9.016350215 | Y52: 4.508175107 | Z52: 2.254087554 | AA52: 1.127043777
P53: 1000 | S53: =INDEX($U$41:$U$46,MATCH($Q$50&$R$50,$S$41:$S$46&$T$41:$T$46,0))*$P53/($L$50/1000000) -> 83.6245967 | T53: 41.81229835 | U53: 20.90614917 | V53: 10.45307459 | X53: =INDEX($U$41:$U$46,MATCH($Q$50&$W$50,$S$41:$S$46&$T$41:$T$46,0))*$P53/($L$50/1000000) -> 90.16350215 | Y53: 45.08175107 | Z53: 22.54087554 | AA53: 11.27043777
H54: CAT6 | I54: 23 | J54: 0.0226 | K54: =J54*25.4 -> 0.57404 | L54: =PI()*(K54/2)^2 -> 0.258805912 | M54: =2*L54 -> 0.517611824 | N54: =2*M54 -> 1.035223648 | O54: =2*N54 -> 2.070447296 | P54: 1 | S54: =INDEX($U$41:$U$46,MATCH($Q$50&$R$50,$S$41:$S$46&$T$41:$T$46,0))*$P54/($L$54/1000000) -> 0.06614686607 | T54: 0.03307343303 | U54: 0.01653671652 | V54: 0.008268358258 | X54: =INDEX($U$41:$U$46,MATCH($Q$50&$W$50,$S$41:$S$46&$T$41:$T$46,0))*$P54/($L$54/1000000) -> 0.07131912543 | Y54: 0.03565956271 | Z54: 0.01782978136 | AA54: 0.008914890678
P55: 10 | S55: =INDEX($U$41:$U$46,MATCH($Q$50&$R$50,$S$41:$S$46&$T$41:$T$46,0))*$P55/($L$54/1000000) -> 0.6614686607 | T55: 0.3307343303 | U55: 0.1653671652 | V55: 0.08268358258 | X55: =INDEX($U$41:$U$46,MATCH($Q$50&$W$50,$S$41:$S$46&$T$41:$T$46,0))*$P55/($L$54/1000000) -> 0.7131912543 | Y55: 0.3565956271 | Z55: 0.1782978136 | AA55: 0.08914890678
P56: 100 | S56: =INDEX($U$41:$U$46,MATCH($Q$50&$R$50,$S$41:$S$46&$T$41:$T$46,0))*$P56/($L$54/1000000) -> 6.614686607 | T56: 3.307343303 | U56: 1.653671652 | V56: 0.8268358258 | X56: =INDEX($U$41:$U$46,MATCH($Q$50&$W$50,$S$41:$S$46&$T$41:$T$46,0))*$P56/($L$54/1000000) -> 7.131912543 | Y56: 3.565956271 | Z56: 1.782978136 | AA56: 0.8914890678
P57: 1000 | S57: =INDEX($U$41:$U$46,MATCH($Q$50&$R$50,$S$41:$S$46&$T$41:$T$46,0))*$P57/($L$54/1000000) -> 66.14686607 | T57: 33.07343303 | U57: 16.53671652 | V57: 8.268358258 | X57: =INDEX($U$41:$U$46,MATCH($Q$50&$W$50,$S$41:$S$46&$T$41:$T$46,0))*$P57/($L$54/1000000) -> 71.31912543 | Y57: 35.65956271 | Z57: 17.82978136 | AA57: 8.914890678
H58: CAT7 | I58: 23 | J58: 0.0226 | K58: =J58*25.4 -> 0.57404 | L58: =PI()*(K58/2)^2 -> 0.258805912 | M58: =2*L58 -> 0.517611824 | N58: =2*M58 -> 1.035223648 | O58: =2*N58 -> 2.070447296 | P58: 1 | S58: =INDEX($U$41:$U$46,MATCH($Q$50&$R$50,$S$41:$S$46&$T$41:$T$46,0))*$P58/($L$58/1000000) -> 0.06614686607 | T58: 0.03307343303 | U58: 0.01653671652 | V58: 0.008268358258 | X58: =INDEX($U$41:$U$46,MATCH($Q$50&$W$50,$S$41:$S$46&$T$41:$T$46,0))*$P58/($L$58/1000000) -> 0.07131912543 | Y58: 0.03565956271 | Z58: 0.01782978136 | AA58: 0.008914890678
P59: 10 | S59: =INDEX($U$41:$U$46,MATCH($Q$50&$R$50,$S$41:$S$46&$T$41:$T$46,0))*$P59/($L$58/1000000) -> 0.6614686607 | T59: 0.3307343303 | U59: 0.1653671652 | V59: 0.08268358258 | X59: =INDEX($U$41:$U$46,MATCH($Q$50&$W$50,$S$41:$S$46&$T$41:$T$46,0))*$P59/($L$58/1000000) -> 0.7131912543 | Y59: 0.3565956271 | Z59: 0.1782978136 | AA59: 0.08914890678
P60: 100 | S60: =INDEX($U$41:$U$46,MATCH($Q$50&$R$50,$S$41:$S$46&$T$41:$T$46,0))*$P60/($L$58/1000000) -> 6.614686607 | T60: 3.307343303 | U60: 1.653671652 | V60: 0.8268358258 | X60: =INDEX($U$41:$U$46,MATCH($Q$50&$W$50,$S$41:$S$46&$T$41:$T$46,0))*$P60/($L$58/1000000) -> 7.131912543 | Y60: 3.565956271 | Z60: 1.782978136 | AA60: 0.8914890678
P61: 1000 | S61: =INDEX($U$41:$U$46,MATCH($Q$50&$R$50,$S$41:$S$46&$T$41:$T$46,0))*$P61/($L$58/1000000) -> 66.14686607 | T61: 33.07343303 | U61: 16.53671652 | V61: 8.268358258 | X61: =INDEX($U$41:$U$46,MATCH($Q$50&$W$50,$S$41:$S$46&$T$41:$T$46,0))*$P61/($L$58/1000000) -> 71.31912543 | Y61: 35.65956271 | Z61: 17.82978136 | AA61: 8.914890678
I63: AWG Chosen | J63: AWG [in] | K63: AWG [mm] | L63: Cross Section 1 conductor [mm2] | M63: Cross Section 2 conductor [mm2] | N63: Cross Section 4 conductor [mm2] | O63: Cross Section 8 conductor [mm2] | P63: Cross Section based on PoE class [mm2]
I64: ='Simple Configurator for Install'!D10 -> 22 | J64: =0.005*92^((36-I64)/39) -> 0.02534658655 | K64: =J64*25.4 -> 0.6438032985 | L64: =PI()*(K64/2)^2 -> 0.3255339412 | M64: =2*L64 -> 0.6510678825 | N64: =2*M64 -> 1.302135765 | O64: =2*N64 -> 2.60427153 | P64: =VLOOKUP(I64,I64:O64,7-(-0.5*L73+3),FALSE) -> 1.302135765
H67: User Interface data introduction restrictions
H69: Allowed Wire Gauge: | K69: 22 | L69: 23 | M69: 24 | N69: 25 | O69: 26
H70: Allowed PoE classes: | K70: 0 | L70: 1 | M70: 2 | N70: 3 | O70: 4 | P70: 5 | Q70: 6
H72: Chosen class | I72: VPSE_min [V] | J72: VPSE_max [V] | K72: PClass [W] | L72: Number of pairs
H73: ='Simple Configurator for Install'!D11 -> 6 | I73: =VLOOKUP($H73,$H$2:$L$10,4,FALSE) -> 50 | J73: =VLOOKUP($H73,$H$2:$M$10,5,FALSE) -> 57 | K73: =VLOOKUP($H73,$H$2:$L$10,2,FALSE) -> 60 | L73: =VLOOKUP($H73,$H$2:$M$10,6,FALSE) -> 4
H90: Daisy-chain topology represented in the schematic design above used to estimate the maximum number of devices allowed to be powered in the same PoE branch.
H92: Cable from Switch to 1st device | K92: ='Simple Configurator for Install'!D7 -> 100 | L92: m
H94: Insert Cable Length: | K94: ='Simple Configurator for Install'!D8 -> 2 | L94: m
H95: Insert Temperature: | K95: 25 | L95: ºC
H96: Cable Conductor Material: | K96: Copper
H97: Insert cable category: | K97: ='Simple Configurator for Install'!D9 -> CAT6
H99: # Devices | I99: Vin [V] | J99: LCable [m] | K99: Rcable [Ω] | L99: VDrop_Device [V] | M99: PDevice [W] | N99: Icable [A] | O99: Vcable [V] | P99: Pin [W] | Q99: PDiode [W] | R99: PCable [W] | S99: ILoad | T99: Vout [V] | V99: # Devices | W99: Vin [V] | X99: LCable [m] | Y99: Rcable [Ω] | Z99: VDrop_Device [V] | AA99: PDevice [W] | AB99: Icable [A] | AC99: Vcable [V] | AD99: Pin [W] | AE99: PDiode [W] | AF99: PCable [W] | AG99: ILoad | AH99: Vout [V]
H100: 1 | I100: =I73 -> 50 | J100: =$K$94 -> 2 | K100: =INDEX('Simple Configurator for Install'!$U$41:$U$46,MATCH($K$96&$K$95,'Simple Configurator for Install'!$S$41:$S$46&'Simple Configurator for Install'!$T$41:$T$46,0))*J100/'Simple Configurator for Install'!$P$64*1000000 -> 0.0262940324 | L100: 0.2 | M100: 3 | N100: =(I100-L100-SQRT((L100-I100)^2-4*K100*M100))/(2*K100) -> 0.06024288005 | O100: =K100*N100 -> 0.00158402824 | P100: =N100*I100 -> 3.012144002 | Q100: =L100*N100 -> 0.01204857601 | R100: =O100*N100 -> 9.542642327e-05 | S100: =N100 -> 0.06024288005 | T100: =(P100-R100-Q100)/S100 -> 49.79841597 | V100: 1 | W100: =I100 -> 50 | X100: =$K$92 -> 100 | Y100: =INDEX('Simple Configurator for Install'!$U$41:$U$46,MATCH($K$96&$K$95,'Simple Configurator for Install'!$S$41:$S$46&'Simple Configurator for Install'!$T$41:$T$46,0))*X100/'Simple Configurator for Install'!$P$64*1000000 -> 1.31470162 | Z100: 0.2 | AA100: =$M$100 -> 3 | AB100: =(W100-Z100-SQRT((Z100-W100)^2-4*Y100*AA100))/(2*Y100) -> 0.06033707336 | AC100: =Y100*AB100 -> 0.07932524811 | AD100: =AB100*W100 -> 3.016853668 | AE100: =Z100*AB100 -> 0.01206741467 | AF100: =AC100*AB100 -> 0.004786253314 | AG100: =AB100 -> 0.06033707336 | AH100: =(AD100-AF100-AE100)/AG100 -> 49.72067475
H101: 2 | I101: =I100+L101+O101 -> 50.20316167 | J101: 2 | K101: =INDEX('Simple Configurator for Install'!$U$41:$U$46,MATCH($K$96&$K$95,'Simple Configurator for Install'!$S$41:$S$46&'Simple Configurator for Install'!$T$41:$T$46,0))*J101/'Simple Configurator for Install'!$P$64*1000000 -> 0.0262940324 | L101: 0.2 | M101: =$M$100 -> 3 | N101: =N100+M101/I100 -> 0.12024288 | O101: 0.003161670184 | P101: 6.036572747 | Q101: 0.02404857601 | R101: 0.0003801683287 | S101: =N101-N100 -> 0.06 | T101: =(P101-P100-R101-Q101)/S101 -> 50 | V101: 2 | W101: =I100+Z101+AC101 -> 50.35808351 | X101: 100 | Y101: =INDEX('Simple Configurator for Install'!$U$41:$U$46,MATCH($K$96&$K$95,'Simple Configurator for Install'!$S$41:$S$46&'Simple Configurator for Install'!$T$41:$T$46,0))*X101/'Simple Configurator for Install'!$P$64*1000000 -> 1.31470162 | Z101: 0.2 | AA101: 3 | AB101: =N100+AA101/I100 -> 0.12024288 | AC101: 0.1580835092 | AD101: 6.055200995 | AE101: 0.02404857601 | AF101: 0.01900841644 | AG101: =AB101-N100 -> 0.06 | AH101: =(AD101-P100-AF101-AE101)/AG101 -> 50
H102: 3 | I102: 50.4078946 | J102: 2 | K102: =INDEX('Simple Configurator for Install'!$U$41:$U$46,MATCH($K$96&$K$95,'Simple Configurator for Install'!$S$41:$S$46&'Simple Configurator for Install'!$T$41:$T$46,0))*J102/'Simple Configurator for Install'!$P$64*1000000 -> 0.0262940324 | L102: 0.2 | M102: 3 | N102: 0.1800000726 | O102: 0.004732927743 | P102: 9.073424689 | Q102: 0.03600001453 | R102: 0.0008519273374 | S102: 0.05975719258 | T102: 50.20316167 | V102: 3 | W102: 50.63980806 | X102: 100 | Y102: =INDEX('Simple Configurator for Install'!$U$41:$U$46,MATCH($K$96&$K$95,'Simple Configurator for Install'!$S$41:$S$46&'Simple Configurator for Install'!$T$41:$T$46,0))*X102/'Simple Configurator for Install'!$P$64*1000000 -> 1.31470162 | Z102: 0.2 | AA102: 3 | AB102: 0.1800000726 | AC102: 0.2366463871 | AD102: 9.115169128 | AE102: 0.03600001453 | AF102: 0.04259636687 | AG102: 0.05975719258 | AH102: 50.20316167
H103: 4 | I103: 50.6141924 | J103: 2 | K103: =INDEX('Simple Configurator for Install'!$U$41:$U$46,MATCH($K$96&$K$95,'Simple Configurator for Install'!$S$41:$S$46&'Simple Configurator for Install'!$T$41:$T$46,0))*J103/'Simple Configurator for Install'!$P$64*1000000 -> 0.0262940324 | L103: 0.2 | M103: 3 | N103: 0.2395145599 | O103: 0.006297803599 | P103: 12.12283602 | Q103: 0.04790291197 | R103: 0.001508415657 | S103: 0.05951448724 | T103: 50.4078946 | V103: 4 | W103: 50.92278478 | X103: 100 | Y103: =INDEX('Simple Configurator for Install'!$U$41:$U$46,MATCH($K$96&$K$95,'Simple Configurator for Install'!$S$41:$S$46&'Simple Configurator for Install'!$T$41:$T$46,0))*X103/'Simple Configurator for Install'!$P$64*1000000 -> 1.31470162 | Z103: 0.2 | AA103: 3 | AB103: 0.2395145599 | AC103: 0.3148901799 | AD103: 12.19674838 | AE103: 0.04790291197 | AF103: 0.07542078285 | AG103: 0.05951448724 | AH103: 50.4078946
H104: 5 | I104: 50.8220487 | J104: 2 | K104: =INDEX('Simple Configurator for Install'!$U$41:$U$46,MATCH($K$96&$K$95,'Simple Configurator for Install'!$S$41:$S$46&'Simple Configurator for Install'!$T$41:$T$46,0))*J104/'Simple Configurator for Install'!$P$64*1000000 -> 0.0262940324 | L104: 0.2 | M104: 3 | N104: 0.2987864727 | O104: 0.007856301195 | P104: 15.18494067 | Q104: 0.05975729454 | R104: 0.002347356523 | S104: 0.05927191283 | T104: 50.6141924 | V104: 5 | W104: 51.20700746 | X104: 100 | Y104: =INDEX('Simple Configurator for Install'!$U$41:$U$46,MATCH($K$96&$K$95,'Simple Configurator for Install'!$S$41:$S$46&'Simple Configurator for Install'!$T$41:$T$46,0))*X104/'Simple Configurator for Install'!$P$64*1000000 -> 1.31470162 | Z104: 0.2 | AA104: 3 | AB104: 0.2987864727 | AC104: 0.3928150598 | AD104: 15.29996114 | AE104: 0.05975729454 | AF104: 0.1173678261 | AG104: 0.05927191283 | AH104: 50.6141924
H105: 6 | I105: 51.03145713 | J105: 2 | K105: =INDEX('Simple Configurator for Install'!$U$41:$U$46,MATCH($K$96&$K$95,'Simple Configurator for Install'!$S$41:$S$46&'Simple Configurator for Install'!$T$41:$T$46,0))*J105/'Simple Configurator for Install'!$P$64*1000000 -> 0.0262940324 | L105: 0.2 | M105: 3 | N105: 0.3578159703 | O105: 0.009408424717 | P105: 18.25987035 | Q105: 0.07156319405 | R105: 0.003366484619 | S105: 0.05902949756 | T105: 50.8220487 | V105: 6 | W105: 51.49246994 | X105: 100 | Y105: =INDEX('Simple Configurator for Install'!$U$41:$U$46,MATCH($K$96&$K$95,'Simple Configurator for Install'!$S$41:$S$46&'Simple Configurator for Install'!$T$41:$T$46,0))*X105/'Simple Configurator for Install'!$P$64*1000000 -> 1.31470162 | Z105: 0.2 | AA105: 3 | AB105: 0.3578159703 | AC105: 0.4704212359 | AD105: 18.42482809 | AE105: 0.07156319405 | AF105: 0.1683242309 | AG105: 0.05902949756 | AH105: 50.8220487
H106: 7 | I106: 51.24241131 | J106: 2 | K106: =INDEX('Simple Configurator for Install'!$U$41:$U$46,MATCH($K$96&$K$95,'Simple Configurator for Install'!$S$41:$S$46&'Simple Configurator for Install'!$T$41:$T$46,0))*J106/'Simple Configurator for Install'!$P$64*1000000 -> 0.0262940324 | L106: 0.2 | M106: 3 | N106: 0.4166032393 | O106: 0.01095417907 | P106: 21.34775454 | Q106: 0.08332064786 | R106: 0.004563546486 | S106: 0.05878726905 | T106: 51.03145713 | V106: 7 | W106: 51.77916608 | X106: 100 | Y106: =INDEX('Simple Configurator for Install'!$U$41:$U$46,MATCH($K$96&$K$95,'Simple Configurator for Install'!$S$41:$S$46&'Simple Configurator for Install'!$T$41:$T$46,0))*X106/'Simple Configurator for Install'!$P$64*1000000 -> 1.31470162 | Z106: 0.2 | AA106: 3 | AB106: 0.4166032393 | AC106: 0.5477089537 | AD106: 21.57136832 | AE106: 0.08332064786 | AF106: 0.2281773243 | AG106: 0.05878726905 | AH106: 51.03145713
H107: 8 | I107: 51.45490488 | J107: 2 | K107: =INDEX('Simple Configurator for Install'!$U$41:$U$46,MATCH($K$96&$K$95,'Simple Configurator for Install'!$S$41:$S$46&'Simple Configurator for Install'!$T$41:$T$46,0))*J107/'Simple Configurator for Install'!$P$64*1000000 -> 0.0262940324 | L107: 0.2 | M107: 3 | N107: 0.4751484936 | O107: 0.01249356989 | P107: 24.44872054 | Q107: 0.09502969872 | R107: 0.005936300912 | S107: 0.05854525428 | T107: 51.24241131 | V107: 8 | W107: 52.0670898 | X107: 100 | Y107: =INDEX('Simple Configurator for Install'!$U$41:$U$46,MATCH($K$96&$K$95,'Simple Configurator for Install'!$S$41:$S$46&'Simple Configurator for Install'!$T$41:$T$46,0))*X107/'Simple Configurator for Install'!$P$64*1000000 -> 1.31470162 | Z107: 0.2 | AA107: 3 | AB107: 0.4751484936 | AC107: 0.6246784944 | AD107: 24.73959928 | AE107: 0.09502969872 | AF107: 0.2968150456 | AG107: 0.05854525428 | AH107: 51.24241131
H108: 9 | I108: 51.66893148 | J108: 2 | K108: =INDEX('Simple Configurator for Install'!$U$41:$U$46,MATCH($K$96&$K$95,'Simple Configurator for Install'!$S$41:$S$46&'Simple Configurator for Install'!$T$41:$T$46,0))*J108/'Simple Configurator for Install'!$P$64*1000000 -> 0.0262940324 | L108: 0.2 | M108: 3 | N108: 0.5334519733 | O108: 0.01402660347 | P108: 27.56289345 | Q108: 0.1066903947 | R108: 0.0074825193 | S108: 0.05830347966 | T108: 51.45490488 | V108: 9 | W108: 52.35623505 | X108: 100 | Y108: =INDEX('Simple Configurator for Install'!$U$41:$U$46,MATCH($K$96&$K$95,'Simple Configurator for Install'!$S$41:$S$46&'Simple Configurator for Install'!$T$41:$T$46,0))*X108/'Simple Configurator for Install'!$P$64*1000000 -> 1.31470162 | Z108: 0.2 | AA108: 3 | AB108: 0.5334519733 | AC108: 0.7013301736 | AD108: 27.9295369 | AE108: 0.1066903947 | AF108: 0.374125965 | AG108: 0.05830347966 | AH108: 51.45490488
H109: 10 | I109: 51.88448477 | J109: 2 | K109: =INDEX('Simple Configurator for Install'!$U$41:$U$46,MATCH($K$96&$K$95,'Simple Configurator for Install'!$S$41:$S$46&'Simple Configurator for Install'!$T$41:$T$46,0))*J109/'Simple Configurator for Install'!$P$64*1000000 -> 0.0262940324 | L109: 0.2 | M109: 3 | N109: 0.5915139442 | O109: 0.01555328682 | P109: 30.69039623 | Q109: 0.1183027888 | R109: 0.009199986031 | S109: 0.05806197098 | T109: 51.66893148 | V109: 10 | W109: 52.64659582 | X109: 100 | Y109: =INDEX('Simple Configurator for Install'!$U$41:$U$46,MATCH($K$96&$K$95,'Simple Configurator for Install'!$S$41:$S$46&'Simple Configurator for Install'!$T$41:$T$46,0))*X109/'Simple Configurator for Install'!$P$64*1000000 -> 1.31470162 | Z109: 0.2 | AA109: 3 | AB109: 0.5915139442 | AC109: 0.7776643409 | AD109: 31.14119554 | AE109: 0.1183027888 | AF109: 0.4599993016 | AG109: 0.05806197098 | AH109: 51.66893148
H110: 11 | I110: 52.10155839 | J110: 2 | K110: =INDEX('Simple Configurator for Install'!$U$41:$U$46,MATCH($K$96&$K$95,'Simple Configurator for Install'!$S$41:$S$46&'Simple Configurator for Install'!$T$41:$T$46,0))*J110/'Simple Configurator for Install'!$P$64*1000000 -> 0.0262940324 | L110: 0.2 | M110: 3 | N110: 0.6493346977 | O110: 0.01707362758 | P110: 33.83134967 | Q110: 0.1298669395 | R110: 0.0110864988 | S110: 0.05782075342 | T110: 51.88448477 | V110: 11 | W110: 52.93816615 | X110: 100 | Y110: =INDEX('Simple Configurator for Install'!$U$41:$U$46,MATCH($K$96&$K$95,'Simple Configurator for Install'!$S$41:$S$46&'Simple Configurator for Install'!$T$41:$T$46,0))*X110/'Simple Configurator for Install'!$P$64*1000000 -> 1.31470162 | Z110: 0.2 | AA110: 3 | AB110: 0.6493346977 | AC110: 0.8536813791 | AD110: 34.37458811 | AE110: 0.1298669395 | AF110: 0.5543249402 | AG110: 0.05782075342 | AH110: 51.88448477
H111: 12 | I111: 52.32014603 | J111: 2 | K111: =INDEX('Simple Configurator for Install'!$U$41:$U$46,MATCH($K$96&$K$95,'Simple Configurator for Install'!$S$41:$S$46&'Simple Configurator for Install'!$T$41:$T$46,0))*J111/'Simple Configurator for Install'!$P$64*1000000 -> 0.0262940324 | L111: 0.2 | M111: 3 | N111: 0.7069145492 | O111: 0.01858763407 | P111: 36.98587245 | Q111: 0.1413829098 | R111: 0.01313986896 | S111: 0.05757985159 | T111: 52.10155839 | V111: 12 | W111: 53.2309401 | X111: 100 | Y111: =INDEX('Simple Configurator for Install'!$U$41:$U$46,MATCH($K$96&$K$95,'Simple Configurator for Install'!$S$41:$S$46&'Simple Configurator for Install'!$T$41:$T$46,0))*X111/'Simple Configurator for Install'!$P$64*1000000 -> 1.31470162 | Z111: 0.2 | AA111: 3 | AB111: 0.7069145492 | AC111: 0.9293817033 | AD111: 37.62972602 | AE111: 0.1413829098 | AF111: 0.6569934478 | AG111: 0.05757985159 | AH111: 52.10155839
H112: 13 | I112: 52.54024134 | J112: 2 | K112: =INDEX('Simple Configurator for Install'!$U$41:$U$46,MATCH($K$96&$K$95,'Simple Configurator for Install'!$S$41:$S$46&'Simple Configurator for Install'!$T$41:$T$46,0))*J112/'Simple Configurator for Install'!$P$64*1000000 -> 0.0262940324 | L112: 0.2 | M112: 3 | N112: 0.7642538387 | O112: 0.0200953152 | P112: 40.15408114 | Q112: 0.1528507677 | R112: 0.01535792178 | S112: 0.0573392895 | T112: 52.32014603 | V112: 13 | W112: 53.52491179 | X112: 100 | Y112: =INDEX('Simple Configurator for Install'!$U$41:$U$46,MATCH($K$96&$K$95,'Simple Configurator for Install'!$S$41:$S$46&'Simple Configurator for Install'!$T$41:$T$46,0))*X112/'Simple Configurator for Install'!$P$64*1000000 -> 1.31470162 | Z112: 0.2 | AA112: 3 | AB112: 0.7642538387 | AC112: 1.00476576 | AD112: 40.9066193 | AE112: 0.1528507677 | AF112: 0.7678960892 | AG112: 0.0573392895 | AH112: 52.32014603
H113: 14 | I113: 52.76183802 | J113: 2 | K113: =INDEX('Simple Configurator for Install'!$U$41:$U$46,MATCH($K$96&$K$95,'Simple Configurator for Install'!$S$41:$S$46&'Simple Configurator for Install'!$T$41:$T$46,0))*J113/'Simple Configurator for Install'!$P$64*1000000 -> 0.0262940324 | L113: 0.2 | M113: 3 | N113: 0.8213529293 | O113: 0.02159668054 | P113: 43.33609022 | Q113: 0.1642705859 | R113: 0.01773849683 | S113: 0.05709909059 | T113: 52.54024134 | V113: 14 | W113: 53.82007537 | X113: 100 | Y113: =INDEX('Simple Configurator for Install'!$U$41:$U$46,MATCH($K$96&$K$95,'Simple Configurator for Install'!$S$41:$S$46&'Simple Configurator for Install'!$T$41:$T$46,0))*X113/'Simple Configurator for Install'!$P$64*1000000 -> 1.31470162 | Z113: 0.2 | AA113: 3 | AB113: 0.8213529293 | AC113: 1.079834027 | AD113: 44.20527656 | AE113: 0.1642705859 | AF113: 0.8869248413 | AG113: 0.05709909059 | AH113: 52.54024134
H114: 15 | I114: 52.98492976 | J114: 2 | K114: =INDEX('Simple Configurator for Install'!$U$41:$U$46,MATCH($K$96&$K$95,'Simple Configurator for Install'!$S$41:$S$46&'Simple Configurator for Install'!$T$41:$T$46,0))*J114/'Simple Configurator for Install'!$P$64*1000000 -> 0.0262940324 | L114: 0.2 | M114: 3 | N114: 0.878212207 | O114: 0.02309174023 | P114: 46.53201211 | Q114: 0.1756424414 | R114: 0.02027944815 | S114: 0.0568592777 | T114: 52.76183802 | V114: 15 | W114: 54.11642504 | X114: 100 | Y114: =INDEX('Simple Configurator for Install'!$U$41:$U$46,MATCH($K$96&$K$95,'Simple Configurator for Install'!$S$41:$S$46&'Simple Configurator for Install'!$T$41:$T$46,0))*X114/'Simple Configurator for Install'!$P$64*1000000 -> 1.31470162 | Z114: 0.2 | AA114: 3 | AB114: 0.878212207 | AC114: 1.154587012 | AD114: 47.52570507 | AE114: 0.1756424414 | AF114: 1.013972408 | AG114: 0.0568592777 | AH114: 52.76183802
H115: 16 | I115: 53.20951027 | J115: 2 | K115: =INDEX('Simple Configurator for Install'!$U$41:$U$46,MATCH($K$96&$K$95,'Simple Configurator for Install'!$S$41:$S$46&'Simple Configurator for Install'!$T$41:$T$46,0))*J115/'Simple Configurator for Install'!$P$64*1000000 -> 0.0262940324 | L115: 0.2 | M115: 3 | N115: 0.9348320801 | O115: 0.02458050501 | P115: 49.74195717 | Q115: 0.186966416 | R115: 0.02297864463 | S115: 0.05661987311 | T115: 52.98492976 | V115: 16 | W115: 54.41395501 | X115: 100 | Y115: =INDEX('Simple Configurator for Install'!$U$41:$U$46,MATCH($K$96&$K$95,'Simple Configurator for Install'!$S$41:$S$46&'Simple Configurator for Install'!$T$41:$T$46,0))*X115/'Simple Configurator for Install'!$P$64*1000000 -> 1.31470162 | Z115: 0.2 | AA115: 3 | AB115: 0.9348320801 | AC115: 1.22902525 | AD115: 50.86791076 | AE115: 0.186966416 | AF115: 1.148932231 | AG115: 0.05661987311 | AH115: 52.98492976
H116: 17 | I116: 53.43557326 | J116: 2 | K116: =INDEX('Simple Configurator for Install'!$U$41:$U$46,MATCH($K$96&$K$95,'Simple Configurator for Install'!$S$41:$S$46&'Simple Configurator for Install'!$T$41:$T$46,0))*J116/'Simple Configurator for Install'!$P$64*1000000 -> 0.0262940324 | L116: 0.2 | M116: 3 | N116: 0.9912129787 | O116: 0.02606298618 | P116: 52.96603373 | Q116: 0.1982425957 | R116: 0.02583397017 | S116: 0.05638089854 | T116: 53.20951027 | V116: 17 | W116: 54.71265958 | X116: 100 | Y116: =INDEX('Simple Configurator for Install'!$U$41:$U$46,MATCH($K$96&$K$95,'Simple Configurator for Install'!$S$41:$S$46&'Simple Configurator for Install'!$T$41:$T$46,0))*X116/'Simple Configurator for Install'!$P$64*1000000 -> 1.31470162 | Z116: 0.2 | AA116: 3 | AB116: 0.9912129787 | AC116: 1.303149309 | AD116: 54.23189827 | AE116: 0.1982425957 | AF116: 1.291698508 | AG116: 0.05638089854 | AH116: 53.20951027
H117: 18 | I117: 53.66311245 | J117: 2 | K117: =INDEX('Simple Configurator for Install'!$U$41:$U$46,MATCH($K$96&$K$95,'Simple Configurator for Install'!$S$41:$S$46&'Simple Configurator for Install'!$T$41:$T$46,0))*J117/'Simple Configurator for Install'!$P$64*1000000 -> 0.0262940324 | L117: 0.2 | M117: 3 | N117: 1.047355354 | O117: 0.02753919561 | P117: 56.20434813 | Q117: 0.2094710708 | R117: 0.02884332397 | S117: 0.05614237515 | T117: 53.43557326 | V117: 18 | W117: 55.01253304 | X117: 100 | Y117: =INDEX('Simple Configurator for Install'!$U$41:$U$46,MATCH($K$96&$K$95,'Simple Configurator for Install'!$S$41:$S$46&'Simple Configurator for Install'!$T$41:$T$46,0))*X117/'Simple Configurator for Install'!$P$64*1000000 -> 1.31470162 | Z117: 0.2 | AA117: 3 | AB117: 1.047355354 | AC117: 1.376959781 | AD117: 57.617671 | AE117: 0.2094710708 | AF117: 1.442166198 | AG117: 0.05614237515 | AH117: 53.43557326
H118: 19 | I118: 53.8921216 | J118: 2 | K118: =INDEX('Simple Configurator for Install'!$U$41:$U$46,MATCH($K$96&$K$95,'Simple Configurator for Install'!$S$41:$S$46&'Simple Configurator for Install'!$T$41:$T$46,0))*J118/'Simple Configurator for Install'!$P$64*1000000 -> 0.0262940324 | L118: 0.2 | M118: 3 | N118: 1.103259677 | O118: 0.02900914571 | P118: 59.45700469 | Q118: 0.2206519355 | R118: 0.03200462073 | S118: 0.05590432353 | T118: 53.66311245 | V118: 19 | W118: 55.31356974 | X118: 100 | Y118: =INDEX('Simple Configurator for Install'!$U$41:$U$46,MATCH($K$96&$K$95,'Simple Configurator for Install'!$S$41:$S$46&'Simple Configurator for Install'!$T$41:$T$46,0))*X118/'Simple Configurator for Install'!$P$64*1000000 -> 1.31470162 | Z118: 0.2 | AA118: 3 | AB118: 1.103259677 | AC118: 1.450457285 | AD118: 61.0252311 | AE118: 0.2206519355 | AF118: 1.600231037 | AG118: 0.05590432353 | AH118: 53.66311245
H119: 20 | I119: 54.12259445 | J119: 2 | K119: =INDEX('Simple Configurator for Install'!$U$41:$U$46,MATCH($K$96&$K$95,'Simple Configurator for Install'!$S$41:$S$46&'Simple Configurator for Install'!$T$41:$T$46,0))*J119/'Simple Configurator for Install'!$P$64*1000000 -> 0.0262940324 | L119: 0.2 | M119: 3 | N119: 1.158926441 | O119: 0.0304728494 | P119: 62.72410576 | Q119: 0.2317852882 | R119: 0.0353157909 | S119: 0.05566676373 | T119: 53.8921216 | V119: 20 | W119: 55.61576407 | X119: 100 | Y119: =INDEX('Simple Configurator for Install'!$U$41:$U$46,MATCH($K$96&$K$95,'Simple Configurator for Install'!$S$41:$S$46&'Simple Configurator for Install'!$T$41:$T$46,0))*X119/'Simple Configurator for Install'!$P$64*1000000 -> 1.31470162 | Z119: 0.2 | AA119: 3 | AB119: 1.158926441 | AC119: 1.52364247 | AD119: 64.45457952 | AE119: 0.2317852882 | AF119: 1.765789545 | AG119: 0.05566676373 | AH119: 53.8921216
H120: 21 | I120: 54.35452477 | J120: 2 | K120: =INDEX('Simple Configurator for Install'!$U$41:$U$46,MATCH($K$96&$K$95,'Simple Configurator for Install'!$S$41:$S$46&'Simple Configurator for Install'!$T$41:$T$46,0))*J120/'Simple Configurator for Install'!$P$64*1000000 -> 0.0262940324 | L120: 0.2 | M120: 3 | N120: 1.214356156 | O120: 0.03193032013 | P120: 66.00575178 | Q120: 0.2428712313 | R120: 0.03877478082 | S120: 0.05542971527 | T120: 54.12259445 | V120: 21 | W120: 55.91911045 | X120: 100 | Y120: =INDEX('Simple Configurator for Install'!$U$41:$U$46,MATCH($K$96&$K$95,'Simple Configurator for Install'!$S$41:$S$46&'Simple Configurator for Install'!$T$41:$T$46,0))*X120/'Simple Configurator for Install'!$P$64*1000000 -> 1.31470162 | Z120: 0.2 | AA120: 3 | AB120: 1.214356156 | AC120: 1.596516006 | AD120: 67.90571604 | AE120: 0.2428712313 | AF120: 1.938739041 | AG120: 0.05542971527 | AH120: 54.12259445
H121: 22 | I121: 54.58790634 | J121: 2 | K121: =INDEX('Simple Configurator for Install'!$U$41:$U$46,MATCH($K$96&$K$95,'Simple Configurator for Install'!$S$41:$S$46&'Simple Configurator for Install'!$T$41:$T$46,0))*J121/'Simple Configurator for Install'!$P$64*1000000 -> 0.0262940324 | L121: 0.2 | M121: 3 | N121: 1.269549353 | O121: 0.03338157184 | P121: 69.3020412 | Q121: 0.2539098707 | R121: 0.04237955295 | S121: 0.05519319712 | T121: 54.35452477 | V121: 22 | W121: 56.22360336 | X121: 100 | Y121: =INDEX('Simple Configurator for Install'!$U$41:$U$46,MATCH($K$96&$K$95,'Simple Configurator for Install'!$S$41:$S$46&'Simple Configurator for Install'!$T$41:$T$46,0))*X121/'Simple Configurator for Install'!$P$64*1000000 -> 1.31470162 | Z121: 0.2 | AA121: 3 | AB121: 1.269549353 | AC121: 1.669078592 | AD121: 71.37863929 | AE121: 0.2539098707 | AF121: 2.118977647 | AG121: 0.05519319712 | AH121: 54.35452477
H122: 23 | I122: 54.82273296 | J122: 2 | K122: =INDEX('Simple Configurator for Install'!$U$41:$U$46,MATCH($K$96&$K$95,'Simple Configurator for Install'!$S$41:$S$46&'Simple Configurator for Install'!$T$41:$T$46,0))*J122/'Simple Configurator for Install'!$P$64*1000000 -> 0.0262940324 | L122: 0.2 | M122: 3 | N122: 1.324506581 | O122: 0.03482661897 | P122: 72.6130706 | Q122: 0.2649013162 | R122: 0.04612808602 | S122: 0.05495722773 | T122: 54.58790634 | V122: 23 | W122: 56.52923729 | X122: 100 | Y122: =INDEX('Simple Configurator for Install'!$U$41:$U$46,MATCH($K$96&$K$95,'Simple Configurator for Install'!$S$41:$S$46&'Simple Configurator for Install'!$T$41:$T$46,0))*X122/'Simple Configurator for Install'!$P$64*1000000 -> 1.31470162 | Z122: 0.2 | AA122: 3 | AB122: 1.324506581 | AC122: 1.741330948 | AD122: 74.87334682 | AE122: 0.2649013162 | AF122: 2.306404301 | AG122: 0.05495722773 | AH122: 54.58790634
H123: 24 | I123: 55.05899843 | J123: 2 | K123: =INDEX('Simple Configurator for Install'!$U$41:$U$46,MATCH($K$96&$K$95,'Simple Configurator for Install'!$S$41:$S$46&'Simple Configurator for Install'!$T$41:$T$46,0))*J123/'Simple Configurator for Install'!$P$64*1000000 -> 0.0262940324 | L123: 0.2 | M123: 3 | N123: 1.379228406 | O123: 0.03626547641 | P123: 75.93893466 | Q123: 0.2758456812 | R123: 0.05001837523 | S123: 0.05472182502 | T123: 54.82273296 | V123: 24 | W123: 56.83600678 | X123: 100 | Y123: =INDEX('Simple Configurator for Install'!$U$41:$U$46,MATCH($K$96&$K$95,'Simple Configurator for Install'!$S$41:$S$46&'Simple Configurator for Install'!$T$41:$T$46,0))*X123/'Simple Configurator for Install'!$P$64*1000000 -> 1.31470162 | Z123: 0.2 | AA123: 3 | AB123: 1.379228406 | AC123: 1.81327382 | AD123: 78.38983504 | AE123: 0.2758456812 | AF123: 2.500918761 | AG123: 0.05472182502 | AH123: 54.82273296
H124: 25 | I124: 55.29669659 | J124: 2 | K124: =INDEX('Simple Configurator for Install'!$U$41:$U$46,MATCH($K$96&$K$95,'Simple Configurator for Install'!$S$41:$S$46&'Simple Configurator for Install'!$T$41:$T$46,0))*J124/'Simple Configurator for Install'!$P$64*1000000 -> 0.0262940324 | L124: 0.2 | M124: 3 | N124: 1.433715413 | O124: 0.03769815952 | P124: 79.27972617 | Q124: 0.2867430825 | R124: 0.05404843233 | S124: 0.0544870064 | T124: 55.05899843 | V124: 25 | W124: 57.14390641 | X124: 100 | Y124: =INDEX('Simple Configurator for Install'!$U$41:$U$46,MATCH($K$96&$K$95,'Simple Configurator for Install'!$S$41:$S$46&'Simple Configurator for Install'!$T$41:$T$46,0))*X124/'Simple Configurator for Install'!$P$64*1000000 -> 1.31470162 | Z124: 0.2 | AA124: 3 | AB124: 1.433715413 | AC124: 1.884907976 | AD124: 81.92809936 | AE124: 0.2867430825 | AF124: 2.702421617 | AG124: 0.0544870064 | AH124: 55.05899843
H125: 26 | I125: 55.53582128 | J125: 2 | K125: =INDEX('Simple Configurator for Install'!$U$41:$U$46,MATCH($K$96&$K$95,'Simple Configurator for Install'!$S$41:$S$46&'Simple Configurator for Install'!$T$41:$T$46,0))*J125/'Simple Configurator for Install'!$P$64*1000000 -> 0.0262940324 | L125: 0.2 | M125: 3 | N125: 1.487968201 | O125: 0.03912468411 | P125: 82.6355361 | Q125: 0.2975936403 | R125: 0.05821628584 | S125: 0.05425278877 | T125: 55.29669659 | V125: 26 | W125: 57.4529308 | X125: 100 | Y125: =INDEX('Simple Configurator for Install'!$U$41:$U$46,MATCH($K$96&$K$95,'Simple Configurator for Install'!$S$41:$S$46&'Simple Configurator for Install'!$T$41:$T$46,0))*X125/'Simple Configurator for Install'!$P$64*1000000 -> 1.31470162 | Z125: 0.2 | AA125: 3 | AB125: 1.487968201 | AC125: 1.956234205 | AD125: 85.48813411 | AE125: 0.2975936403 | AF125: 2.910814292 | AG125: 0.05425278877 | AH125: 55.29669659
H126: 27 | I126: 55.77636634 | J126: 2 | K126: =INDEX('Simple Configurator for Install'!$U$41:$U$46,MATCH($K$96&$K$95,'Simple Configurator for Install'!$S$41:$S$46&'Simple Configurator for Install'!$T$41:$T$46,0))*J126/'Simple Configurator for Install'!$P$64*1000000 -> 0.0262940324 | L126: 0.2 | M126: 3 | N126: 1.54198739 | O126: 0.0405450664 | P126: 86.00645356 | Q126: 0.308397478 | R126: 0.06251998111 | S126: 0.05401918853 | T126: 55.53582128 | V126: 27 | W126: 57.7630746 | X126: 100 | Y126: =INDEX('Simple Configurator for Install'!$U$41:$U$46,MATCH($K$96&$K$95,'Simple Configurator for Install'!$S$41:$S$46&'Simple Configurator for Install'!$T$41:$T$46,0))*X126/'Simple Configurator for Install'!$P$64*1000000 -> 1.31470162 | Z126: 0.2 | AA126: 3 | AB126: 1.54198739 | AC126: 2.02725332 | AD126: 89.06993263 | AE126: 0.308397478 | AF126: 3.125999056 | AG126: 0.05401918853 | AH126: 55.53582128
H127: 28 | I127: 56.01832567 | J127: 2 | K127: =INDEX('Simple Configurator for Install'!$U$41:$U$46,MATCH($K$96&$K$95,'Simple Configurator for Install'!$S$41:$S$46&'Simple Configurator for Install'!$T$41:$T$46,0))*J127/'Simple Configurator for Install'!$P$64*1000000 -> 0.0262940324 | L127: 0.2 | M127: 3 | N127: 1.595773612 | O127: 0.04195932305 | P127: 89.39256586 | Q127: 0.3191547223 | R127: 0.06695758049 | S127: 0.0537862216 | T127: 55.77636634 | V127: 28 | W127: 58.0743325 | X127: 100 | Y127: =INDEX('Simple Configurator for Install'!$U$41:$U$46,MATCH($K$96&$K$95,'Simple Configurator for Install'!$S$41:$S$46&'Simple Configurator for Install'!$T$41:$T$46,0))*X127/'Simple Configurator for Install'!$P$64*1000000 -> 1.31470162 | Z127: 0.2 | AA127: 3 | AB127: 1.595773612 | AC127: 2.097966153 | AD127: 92.67348731 | AE127: 0.3191547223 | AF127: 3.347879024 | AG127: 0.0537862216 | AH127: 55.77636634
H128: 29 | I128: 56.26169314 | J128: 2 | K128: =INDEX('Simple Configurator for Install'!$U$41:$U$46,MATCH($K$96&$K$95,'Simple Configurator for Install'!$S$41:$S$46&'Simple Configurator for Install'!$T$41:$T$46,0))*J128/'Simple Configurator for Install'!$P$64*1000000 -> 0.0262940324 | L128: 0.2 | M128: 3 | N128: 1.649327515 | O128: 0.04336747112 | P128: 92.79395853 | Q128: 0.329865503 | R128: 0.07152716338 | S128: 0.05355390338 | T128: 56.01832567 | V128: 29 | W128: 58.38669922 | X128: 100 | Y128: =INDEX('Simple Configurator for Install'!$U$41:$U$46,MATCH($K$96&$K$95,'Simple Configurator for Install'!$S$41:$S$46&'Simple Configurator for Install'!$T$41:$T$46,0))*X128/'Simple Configurator for Install'!$P$64*1000000 -> 1.31470162 | Z128: 0.2 | AA128: 3 | AB128: 1.649327515 | AC128: 2.168373556 | AD128: 96.29878953 | AE128: 0.329865503 | AF128: 3.576358169 | AG128: 0.05355390338 | AH128: 56.01832567
H129: TOTALS | J129: =SUMIFS(J100:J128,$I$100:$I$128,"<"&'Simple Configurator for Install'!$K$69) -> 0 | K129: =SUMIFS(K100:K128,$I$100:$I$128,"<"&'Simple Configurator for Install'!$K$69) -> 0 | L129: =SUMIFS(L100:L128,$I$100:$I$128,"<"&'Simple Configurator for Install'!$K$69) -> 0 | O129: =SUMIFS(O100:O128,$I$100:$I$128,"<"&'Simple Configurator for Install'!$K$69) -> 0 | R129: =SUMIFS(R100:R128,$I$100:$I$128,"<"&'Simple Configurator for Install'!$K$69) -> 0
H132: Maximum number of allowed devices: | K132: =MIN(COUNTIF(W100:W128,"<"&'Simple Configurator for Install'!$J$73),COUNTIF(AD100:AD128,"<"&'Simple Configurator for Install'!K$73)) -> 18
H133: Total cable length (meters): | K133: =(K132-1)*K94+K92 -> 134 | L133: m
H134: Total diode voltage drop: | K134: =K132*L100 -> 3.6 | L134: V
H135: Total cable voltage drop: | K135: =SUM(_xlfn.TAKE($O$100:$O$128,$K$132-1))+SUM(_xlfn.TAKE($AC$100:$AC$128,$K$132))-SUM(_xlfn.TAKE($AC$100:$AC$128,$K$132-1)) -> 1.614117064 | L135: V
H136: Total diode power dissipation: | K136: =SUM(_xlfn.TAKE($Q$100:$Q$128,$K$132-1))+SUM(_xlfn.TAKE($AE$100:$AE$128,$K$132))-SUM(_xlfn.TAKE($AE$100:$AE$128,$K$132-1)) -> 2.013357824 | L136: W
H137: Total cable power dissipation: | K137: =SUM(_xlfn.TAKE($R$100:$R$128,$K$132-1))+SUM(_xlfn.TAKE($AF$100:$AF$128,$K$132))-SUM(_xlfn.TAKE($AF$100:$AF$128,$K$132-1)) -> 1.604313179 | L137: W
H138: Total power delivered by the PSE: | K138: =INDEX(V100:AH128,K132,9) -> 57.617671 | L138: W
